fUST/lending_fUST_20260114
["ID","MTS","AMOUNT","RATE_DAILY","PERIOD"]
[401823335,1768381858144,-178.026662,0.00030136,7]
[401823337,1768381858153,-151.0,0.00030136,7]
[401823339,1768381858162,-633.419635,0.00030136,7]
[401823350,1768381858252,-633.419635,0.00030136,7]
[401823352,1768381858262,-151.0,0.00030136,7]
[401823354,1768381858271,-633.419635,0.00030136,7]
[401823356,1768381858280,-633.419635,0.00030136,7]
[401823358,1768381858289,-424.867584,0.00030136,7]
[401823360,1768381858298,-424.867584,0.00030136,7]
[401823362,1768381858307,-424.867584,0.00030136,7]
[401823364,1768381858316,-424.867584,0.00030136,7]
[401823365,1768381858325,-151.0,0.00030136,7]
[401823367,1768381858334,-158.985841,0.00030136,7]
[401823369,1768381858343,-837.36,0.00030136,2]
[401823371,1768381858352,-837.36,0.00030136,2]
[401823373,1768381858361,-837.36,0.00030136,2]
[401823375,1768381858371,-837.36,0.00030136,2]
[401823377,1768381858380,-837.36,0.00030136,2]
[401823379,1768381858389,-837.36,0.00030136,2]
[401823381,1768381858398,-837.36,0.00030136,2]
[401823383,1768381858407,-837.36,0.00030136,2]
[401823385,1768381858416,-837.36,0.00030136,2]
[401823387,1768381858425,-837.36,0.00030136,2]
[401823389,1768381858434,-837.36,0.00030136,2]
[401823391,1768381858443,-837.36,0.00030136,2]
[401823393,1768381858452,-837.36,0.00030136,2]
[401823395,1768381858461,-837.36,0.00030136,2]
[401823397,1768381858470,-837.36,0.00030136,2]
[401823399,1768381858480,-837.36,0.00030136,2]
[401823401,1768381858489,-837.36,0.00030136,2]
[401823403,1768381858497,-837.36,0.00030136,2]
[401823405,1768381858507,-837.36,0.00030136,2]
[401823407,1768381858515,-837.36,0.00030136,2]
[401823409,1768381858524,-837.36,0.00030136,2]
[401823411,1768381858533,-837.36,0.00030136,2]
[401823413,1768381858542,-837.36,0.00030136,2]
[401823415,1768381858551,-837.36005193,0.00030136,2]
[401823417,1768381858560,-1000.0,0.00030136,2]
[401823419,1768381858570,-1000.0,0.00030136,2]
[401823421,1768381858579,-1000.0,0.00030136,2]
[401823422,1768381858588,-1000.0,0.00030136,2]
[401823424,1768381858597,-1000.0,0.00030136,2]
[401823426,1768381858606,-1000.0,0.00030136,2]
[401823428,1768381858615,-1000.0,0.00030136,2]
[401823430,1768381858625,-1000.0,0.00030136,2]
[401823432,1768381858634,-1000.0,0.00030136,2]
[401823434,1768381858643,-1000.0,0.00030136,2]
[401823436,1768381858652,-1000.0,0.00030136,2]
[401823438,1768381858661,-1000.0,0.00030136,2]
[401823440,1768381858670,-1000.0,0.00030136,2]
[401823442,1768381858679,-951.08890803,0.00030136,2]
[401823444,1768381858688,-500.0,0.00030136,8]
[401823446,1768381858697,-450.60081956,0.00030136,8]
[401823448,1768381858706,-1000.0,0.00030136,2]
[401823450,1768381858715,-579.56900066,0.00030136,2]
[401823452,1768381858725,-570.63788098,0.00030136,30]
[401823454,1768381858734,-382.165336,0.00030136,7]
[401823456,1768381858743,-216.477356,0.00030136,7]
[401823458,1768381858752,-382.165336,0.00030136,7]
[401823460,1768381858761,-216.477356,0.00030136,7]
[401823462,1768381858770,-382.165336,0.00030136,7]
[401823464,1768381858779,-216.477356,0.00030136,7]
[401823466,1768381858788,-382.165336,0.00030136,7]
[401823468,1768381858797,-216.477356,0.00030136,7]
[401823470,1768381858806,-163.521598,0.00030136,7]
[401823472,1768381858818,-506.802733,0.00030136,7]
[401823474,1768381858828,-506.802733,0.00030136,7]
[401823476,1768381858836,-506.802733,0.00030136,7]
[401823478,1768381858845,-506.802733,0.00030136,7]
[401823480,1768381858854,-1000.0,0.00030136,2]
[401823482,1768381858864,-1000.0,0.00030136,2]
[401823484,1768381858873,-1000.0,0.00030136,2]
[401823486,1768381858883,-1000.0,0.00030136,2]
[401823488,1768381858893,-1000.0,0.00030136,2]
[401823491,1768381858902,-1000.0,0.00030136,2]
[401823492,1768381858912,-1000.0,0.00030136,2]
[401823494,1768381858921,-1000.0,0.00030136,2]
[401823496,1768381858930,-224.80837806,0.00030136,7]
[401823498,1768381858939,-1000.0,0.00030136,2]
[401823500,1768381858948,-1000.0,0.00030136,2]
[401823502,1768381858957,-1000.0,0.00030136,2]
[401823504,1768381858966,-1000.0,0.00030136,2]
[401823506,1768381858976,-1000.0,0.00030136,2]
[401823508,1768381858985,-1000.0,0.00030136,2]
[401823510,1768381858994,-1000.0,0.00030136,2]
[401823512,1768381859003,-1000.0,0.00030136,2]
[401823514,1768381859012,-1000.0,0.00030136,2]
[401823516,1768381859021,-601.50689548,0.00030136,2]
[401823518,1768381859034,-500.0,0.00030136,3]
[401823520,1768381859043,-500.0,0.00030136,3]
[401823522,1768381859052,-500.0,0.00030136,3]
[401823524,1768381859061,-286.91332979,0.00030136,3]
[401823526,1768381859070,-504.47042686,0.00030136,60]
[401823528,1768381859079,-500.0,0.00030136,7]
[401823530,1768381859090,-466.46894229,0.00030136,7]
[401823532,1768381859099,-15704.34,0.00030136,3]
[401823534,1768381859109,-15704.34,0.00030136,3]
[401823536,1768381859119,-15704.34,0.00030136,3]
[401823538,1768381859128,-15704.34,0.00030136,3]
[401823540,1768381859137,-15704.34,0.00030136,3]
[401823542,1768381859146,-15704.34,0.00030136,3]
[401823544,1768381859155,-15704.34,0.00030136,3]
[401823546,1768381859164,-15704.34,0.00030136,3]
[401823548,1768381859173,-15704.34,0.00030136,3]
[401823550,1768381859183,-15704.34,0.00030136,3]
[401823552,1768381859192,-15704.34,0.00030136,3]
[401823554,1768381859201,-15704.34,0.00030136,3]
[401823556,1768381859211,-15704.34,0.00030136,3]
[401823558,1768381859220,-15704.34,0.00030136,3]
[401823560,1768381859229,-15704.34,0.00030136,3]
[401823561,1768381859240,-15704.34,0.00030136,3]
[401823562,1768381859249,-15704.34,0.00030136,3]
[401823563,1768381859258,-15704.34,0.00030136,3]
[401823564,1768381859267,-15704.34,0.00030136,3]
[401823565,1768381859276,-15704.34,0.00030136,3]
[401823566,1768381859286,-15704.34,0.00030136,3]
[401823567,1768381859295,-15704.34,0.00030136,3]
[401823569,1768381859305,-15704.34,0.00030136,3]
[401823570,1768381859315,-15704.4661618,0.00030136,3]
[401823572,1768381859324,-1000.0,0.00030136,14]
[401823574,1768381859334,-500.0,0.00030136,2]
[401823576,1768381859343,-500.0,0.00030136,2]
[401823578,1768381859352,-500.0,0.00030136,2]
[401823580,1768381859362,-500.0,0.00030136,2]
[401823582,1768381859371,-500.0,0.00030136,2]
[401823584,1768381859380,-500.0,0.00030136,2]
[401823585,1768381859391,-500.0,0.00030136,2]
[401823587,1768381859400,-500.0,0.00030136,2]
[401823589,1768381859409,-500.0,0.00030136,2]
[401823591,1768381859419,-500.0,0.00030136,2]
[401823593,1768381859428,-500.0,0.00030136,2]
[401823595,1768381859438,-500.0,0.00030136,2]
[401823597,1768381859447,-500.0,0.00030136,2]
[401823599,1768381859456,-500.0,0.00030136,2]
[401823601,1768381859466,-500.0,0.00030136,2]
[401823603,1768381859476,-500.0,0.00030136,2]
[401823605,1768381859485,-500.0,0.00030136,2]
[401823607,1768381859495,-500.0,0.00030136,2]
[401823610,1768381859506,-500.0,0.00030136,2]
[401823612,1768381859515,-513.88942387,0.00030136,2]
[401823614,1768381859525,-1025.18,0.00030136,21]
[401823616,1768381859535,-1025.18,0.00030136,21]
[401823617,1768381859543,-1025.18,0.00030136,21]
[401823618,1768381859553,-1025.18,0.00030136,21]
[401823619,1768381859567,-1025.18,0.00030136,21]
[401823622,1768381859577,-1025.18,0.00030136,21]
[401823624,1768381859586,-1025.18,0.00030136,21]
[401823625,1768381859596,-1025.18,0.00030136,21]
[401823627,1768381859605,-1025.18,0.00030136,21]
[401823629,1768381859614,-1025.18,0.00030136,21]
[401823631,1768381859623,-1025.18,0.00030136,21]
[401823633,1768381859632,-1025.18,0.00030136,21]
[401823635,1768381859642,-500.0,0.00030136,2]
[401823637,1768381859651,-1025.18,0.00030136,21]
[401823639,1768381859660,-500.0,0.00030136,2]
[401823641,1768381859670,-1025.18,0.00030136,21]
[401823643,1768381859679,-500.0,0.00030136,2]
[401823645,1768381859688,-1025.18,0.00030136,21]
[401823647,1768381859697,-500.0,0.00030136,2]
[401823649,1768381859706,-1025.18,0.00030136,21]
[401823651,1768381859716,-500.0,0.00030136,2]
[401823653,1768381859724,-1025.18,0.00030136,21]
[401823655,1768381859733,-1025.18,0.00030136,21]
[401823665,1768381859818,-1025.18,0.00030136,21]
[401823667,1768381859828,-1025.18,0.00030136,21]
[401823669,1768381859838,-1025.18,0.00030136,21]
[401823671,1768381859848,-1025.18,0.00030136,21]
[401823673,1768381859857,-1025.18,0.00030136,21]
[401823675,1768381859866,-1025.33729357,0.00030136,21]
[401823677,1768381859876,-500.0,0.00030136,2]
[401823679,1768381859886,-500.0,0.00030136,2]
[401823681,1768381859895,-650.0,0.00030137,5]
[401823683,1768381859904,-650.0,0.00030137,5]
[401823685,1768381859914,-192.66,0.00030137,2]
[401823687,1768381859924,-643.17927596,0.00030137,120]
[401823689,1768381859934,-192.66,0.00030168,2]
[401823691,1768381859943,-40340.44,0.000302,2]
[401823693,1768381859952,-3029.1745462,0.00030207,2]
[401823695,1768381859962,-1000.0,0.000304,9]
[401823697,1768381859972,-371.0,0.00030411,14]
[401823699,1768381859982,-3029.1745462,0.00030447,2]
[401823701,1768381859992,-5000.0,0.0003047,9]
[401823703,1768381860001,-167.12486555,0.00030509,10]
[401823705,1768381860011,-500.0,0.00030525,11]
[401823707,1768381860020,-500.0,0.00030525,11]
[401823709,1768381860030,-800.0,0.00030526,2]
[401823711,1768381860042,-468.0,0.00030547,30]
[401823713,1768381860052,-1724.0,0.00030547,30]
[401823715,1768381860061,-473.0,0.00030547,30]
[401823717,1768381860072,-5000.0,0.00030602,30]
[401823719,1768381860082,-207.0,0.00030603,41]
[401823721,1768381860091,-800.0,0.00030647,2]
[401823723,1768381860100,-753.68865104,0.00030685,5]
[401823725,1768381860111,-750.0,0.00030685,5]
[401823727,1768381860120,-34169.46,0.000307,6]
[401823729,1768381860129,-160.0,0.00030708,8]
[401823731,1768381860138,-508.66826773,0.00030727,15]
[401823733,1768381860148,-5000.0,0.00030768,2]
[401823735,1768381860158,-2000.0,0.00030795,7]
[401823737,1768381860168,-2134.84,0.000308,7]
[401823739,1768381860178,-151.0,0.000308,18]
[401823741,1768381860188,-3029.1745462,0.00030805,2]
[401823743,1768381860199,-800.0,0.00030812,2]
[401823745,1768381860209,-700.0,0.00030864,14]
[401823747,1768381860219,-611.12165105,0.00030865,30]
[401823749,1768381860229,-728.0,0.00030883,3]
[401823751,1768381860239,-1000.0,0.000309,9]
[401823753,1768381860250,-778.0,0.000309,2]
[401823755,1768381860260,-1000.0,0.00030903,14]
[401823757,1768381860271,-5000.0,0.00030957,8]
[401823759,1768381860282,-525.17,0.00030958,30]
[401823761,1768381860292,-3056.26,0.00030958,8]
[401823763,1768381860303,-3029.1745462,0.00030977,2]
[401823766,1768381860314,-1219.89862087,0.00031,120]
[401823768,1768381860324,-208.61182815,0.00031,120]
[401823770,1768381860333,-224.11164834,0.00031,120]
[401823772,1768381860343,-258.99712913,0.00031,120]
[401823774,1768381860353,-188.12654303,0.00031,120]
[401823776,1768381860362,-225.90949192,0.00031,120]
[401823778,1768381860372,-189.61393414,0.00031,120]
[401823780,1768381860381,-1041.66666667,0.00031,30]
[401823782,1768381860391,-1019.0,0.00031,7]
[401823784,1768381860401,-1060.1,0.00031034,30]
[401823786,1768381860412,-728.0,0.00031201,3]
[401823788,1768381860421,-728.0,0.00031212,3]
[401823790,1768381860431,-850.0,0.00031233,5]
[401823792,1768381860442,-3029.1745462,0.00031333,2]
[401823794,1768381860451,-267.88,0.000314,7]
[401823796,1768381860460,-253.24,0.000314,7]
[401823798,1768381860470,-4297.16,0.000314,14]
[401823800,1768381860480,-1000.0,0.000314,9]
[401823801,1768381860490,-525.17,0.00031506,31]
[401823803,1768381860499,-6296.92368229,0.00031519,2]
[401823805,1768381860509,-728.0,0.00031521,3]
[401823807,1768381860519,-728.0,0.00031523,3]
[401823809,1768381860528,-1941.97060676,0.00031584,2]
[401823811,1768381860538,-800.0,0.00031587,2]
[401823814,1768381860548,-3029.1745462,0.00031594,2]
[401823816,1768381860558,-160.0,0.00031605,9]
[401823817,1768381860568,-376.8200359,0.00031616,30]
[401823819,1768381860578,-194.2006467,0.00031616,30]
[401823821,1768381860588,-194.2006467,0.00031616,30]
[401823823,1768381860597,-194.2006467,0.00031616,30]
[401823825,1768381860606,-371.0,0.00031644,14]
[401823827,1768381860616,-14150.53090947,0.00031665,2]
[401823829,1768381860627,-1000.0,0.0003167,14]
[401823831,1768381860638,-611.12165105,0.00031684,30]
[401823833,1768381860648,-5000.0,0.00031685,14]
[401823835,1768381860661,-700.0,0.00031686,14]
[401823837,1768381860671,-5000.0,0.00031699,28]
[401823839,1768381860682,-631752.35,0.000317,5]
[401823841,1768381860692,-1000.98,0.000317,5]
[401823843,1768381860701,-100105.93,0.000317,5]
[401823845,1768381860711,-40340.44,0.000317,2]
[401823847,1768381860720,-5000.0,0.00031768,2]
[401823849,1768381860730,-950.0,0.00031781,5]
[401823851,1768381860739,-3029.1745462,0.00031783,2]
[401823853,1768381860748,-5000.0,0.00031823,11]
[401823855,1768381860759,-1219.89862087,0.000319,120]
[401823857,1768381860768,-208.61182815,0.000319,120]
[401823859,1768381860778,-224.11164834,0.000319,120]
[401823861,1768381860788,-1041.66666667,0.000319,3]
[401823863,1768381860798,-189.61393414,0.000319,120]
[401823865,1768381860808,-1000.0,0.000319,9]
[401823867,1768381860818,-2134.84,0.00032,7]
[401823869,1768381860827,-1041.66666667,0.00032,7]
[401823871,1768381860836,-5000.0,0.00032053,30]
[401823873,1768381860845,-525.17,0.00032054,32]
[401823875,1768381860855,-2000.0,0.0003211,7]
[401823877,1768381860865,-629.0,0.00032132,2]
[401823879,1768381860874,-2147.0,0.00032132,2]
[401823881,1768381860883,-1367.0,0.00032135,2]
[401823883,1768381860892,-715.0,0.00032147,2]
[401823885,1768381860902,-178.0,0.00032147,2]
[401823887,1768381860911,-417.0,0.00032147,2]
[401823889,1768381860920,-417.0,0.00032147,2]
[401823891,1768381860930,-1258.927975,0.0003216,7]
[401823893,1768381860939,-5000.0,0.0003216,3]
[401823895,1768381860949,-728.0,0.00032161,3]
[401823897,1768381860958,-376.834513,0.00032164,30]
[401823899,1768381860968,-5000.0,0.00032168,10]
[401823901,1768381860977,-800.0,0.0003218,2]
[401823903,1768381860987,-1000.0,0.0003218,7]
[401823905,1768381860996,-1000.0,0.000322,7]
[401823907,1768381861006,-1000.0,0.0003222,7]
[401823908,1768381861015,-1000.0,0.0003224,7]
[401823910,1768381861024,-1000.0,0.0003226,7]
[401823912,1768381861035,-3029.17454636,0.00032265,2]
[401823914,1768381861046,-1000.0,0.0003228,7]
[401823916,1768381861055,-1000.0,0.000323,7]
[401823918,1768381861064,-800.0,0.00032304,2]
[401823920,1768381861074,-1000.0,0.0003232,7]
[401823922,1768381861084,-5000.0,0.00032327,30]
[401823924,1768381861093,-5000.0,0.00032327,30]
[401823926,1768381861102,-8118.39527738,0.00032328,7]
[401823928,1768381861114,-500.0,0.00032328,7]
[401823930,1768381861122,-500.0,0.00032328,7]
[401823932,1768381861131,-500.0,0.00032328,7]
[401823934,1768381861141,-500.0,0.00032328,7]
[401823936,1768381861150,-500.0,0.00032328,7]
[401823938,1768381861160,-500.0,0.00032328,7]
[401823940,1768381861171,-500.0,0.00032328,7]
[401823942,1768381861181,-500.0,0.00032328,7]
[401823944,1768381861190,-500.0,0.00032328,7]
[401823946,1768381861200,-500.0,0.00032328,7]
[401823948,1768381861209,-500.0,0.00032328,7]
[401823950,1768381861218,-500.0,0.00032328,7]
[401823952,1768381861227,-500.0,0.00032328,7]
[401823954,1768381861236,-500.0,0.00032328,7]
[401823963,1768381861314,-500.0,0.00032328,7]
[401823966,1768381861333,-500.0,0.00032328,7]
[401823967,1768381861343,-500.0,0.00032328,7]
[401823969,1768381861353,-500.0,0.00032328,7]
[401823971,1768381861362,-500.0,0.00032328,7]
[401823974,1768381861376,-200.16078001,0.00032328,7]
[401823975,1768381861386,-1678.33831585,0.00032328,7]
[401823977,1768381861395,-151.0,0.00032328,31]
[401823980,1768381861405,-151.0,0.00032328,31]
[401823982,1768381861415,-152.0453082,0.00032328,7]
[401823984,1768381861424,-608.18123279,0.00032328,7]
[401823986,1768381861434,-151.0,0.00032328,31]
[401823988,1768381861443,-1368.40777377,0.00032328,7]
[401823990,1768381861453,-170.849379,0.00032328,31]
[401823992,1768381861463,-701.437556,0.00032328,31]
[401823994,1768381861472,-701.437556,0.00032328,31]
[401823995,1768381861484,-701.437556,0.00032328,31]
[401823997,1768381861495,-701.437556,0.00032328,31]
[401823999,1768381861508,-2098.99672415,0.00032328,7]
[401824001,1768381861517,-2432.72493115,0.00032328,7]
[401824004,1768381861528,-3801.13270493,0.00032328,7]
[401824006,1768381861540,-5000.0,0.00032328,5]
[401824008,1768381861550,-1050.0,0.00032329,5]
[401824010,1768381861560,-1000.0,0.0003234,7]
[401824012,1768381861570,-4889.93224,0.00032353,2]
[401824013,1768381861582,-53367.7452377,0.00032353,2]
[401824015,1768381861592,-151.0,0.00032353,31]
[401824018,1768381861602,-151.0,0.00032353,31]
[401824020,1768381861612,-151.0,0.00032353,31]
[401824021,1768381861622,-490.347103,0.00032353,31]
[401824024,1768381861633,-490.347103,0.00032353,31]
[401824025,1768381861643,-490.347103,0.00032353,31]
[401824028,1768381861652,-490.347103,0.00032353,31]
[401824029,1768381861662,-490.971226,0.00032353,31]
[401824031,1768381861672,-490.971226,0.00032353,31]
[401824034,1768381861682,-490.971226,0.00032353,31]
[401824035,1768381861691,-490.971226,0.00032353,31]
[401824038,1768381861700,-487.891031,0.00032353,31]
[401824040,1768381861710,-505.094065,0.00032353,31]
[401824042,1768381861719,-487.891031,0.00032353,31]
[401824044,1768381861729,-505.094065,0.00032353,31]
[401824046,1768381861738,-487.891031,0.00032353,31]
[401824048,1768381861748,-505.094065,0.00032353,31]
[401824050,1768381861758,-487.891031,0.00032353,31]
[401824052,1768381861768,-505.094065,0.00032353,31]
[401824054,1768381861778,-703.550412,0.00032353,31]
[401824055,1768381861790,-703.550412,0.00032353,31]
[401824057,1768381861800,-703.550412,0.00032353,31]
[401824059,1768381861810,-703.550412,0.00032353,31]
[401824061,1768381861819,-1000.0,0.0003236,7]
[401824063,1768381861828,-1000.0,0.0003238,7]
[401824065,1768381861838,-1209.821329,0.0003238,7]
[401824067,1768381861848,-5000.0,0.00032399,7]
[401824069,1768381861858,-5000.0,0.00032399,30]
[401824071,1768381861868,-200.0,0.000324,39]
[401824073,1768381861877,-1000.0,0.000324,7]
[401824076,1768381861889,-1000.0,0.000324,7]
[401824078,1768381861898,-1000.0,0.000324,9]
[401824080,1768381861909,-151.0,0.00032408,31]
[401824082,1768381861919,-151.0,0.00032408,31]
[401824084,1768381861928,-151.0,0.00032408,31]
[401824086,1768381861939,-1873.472322,0.00032408,31]
[401824088,1768381861950,-1873.472322,0.00032408,31]
[401824090,1768381861960,-934298.95010007,0.00032408,30]
[401824103,1768381862083,-7081.70353395,0.00032408,30]
[401824141,1768381862432,-3e-08,0.00015105,2]
[401824143,1768381862446,-364.81928846,0.00015105,2]
[401824147,1768381862467,-2170.24383087,0.00015105,2]
[401824149,1768381862477,-500.0,0.00015137,2]
[401824151,1768381862487,-286.5314506,0.00015411,2]
[401824153,1768381862496,-1873.472322,0.00021968,2]
[401824155,1768381862505,-151.000082,0.00021968,2]
[401824157,1768381862514,-1873.472322,0.00028406,7]
[401824159,1768381862524,-500.0,0.00030136,2]
[401824161,1768381862533,-500.0,0.00030136,2]
[401824171,1768381862613,-376.01558741,0.00030136,2]
[401824207,1768381862931,-1345.18676271,9.659e-05,2]
[401824216,1768381863007,-477.26040614,9.659e-05,2]
[401824224,1768381863077,-664.69177675,9.659e-05,2]
[401824289,1768381863705,153.88,6.865e-05,2]
[401824294,1768381863746,179.52,7.014e-05,2]
[401824299,1768381863783,205.17,7.163e-05,2]
[401824304,1768381863822,230.81,7.313e-05,2]
[401824310,1768381863874,256.46,7.462e-05,2]
[401824340,1768381864198,-503.45146981,9.657e-05,2]
[401824342,1768381864208,-300.0,9.658e-05,2]
[401824344,1768381864217,-2960.91644969,9.659e-05,2]
[401824346,1768381864231,-10000.01,9.659e-05,2]
[401824349,1768381864245,-10000.01,9.659e-05,2]
[401824352,1768381864273,-10000.01,9.659e-05,2]
[401824355,1768381864293,-10000.01,9.659e-05,2]
[401824358,1768381864311,-10000.01,9.659e-05,2]
[401824361,1768381864324,-10000.01,9.659e-05,2]
[401825205,1768381872858,650.85,0.00029705,120]
[401825376,1768381903156,202.232,9.466e-05,2]
[401825377,1768381903249,178.226,9.466e-05,2]
[401825378,1768381924172,165.51,6.472e-05,2]
[401825379,1768381924580,220.68,6.622e-05,2]
[401825380,1768381924975,275.85,6.773e-05,2]
[401825381,1768381925382,331.02,6.923e-05,2]
[401825382,1768381925793,386.19,7.074e-05,2]
[401825383,1768381926230,441.36,7.224e-05,2]
[401825384,1768381926638,496.53,7.375e-05,2]
[401825385,1768381927028,551.7,7.525e-05,2]
[401825386,1768381935625,-300.0,9.658e-05,2]
[401825387,1768381962354,682.96911135,9.5e-05,2]
[401825388,1768381975042,500.0,9.657e-05,2]
[401825389,1768381975186,500.0,9.657e-05,2]
[401825390,1768381975375,500.0,9.657e-05,2]
[401825391,1768381975683,300.0,9.657e-05,2]
[401825392,1768381976151,300.0,9.657e-05,2]
[401825393,1768381982640,300.0,9.658e-05,2]
[401825394,1768381984609,500.0,9.657e-05,2]
[401825395,1768381985311,500.0,9.657e-05,2]
[401825396,1768381992972,500.0,9.657e-05,2]
[401825397,1768381993003,500.0,9.657e-05,2]
[401825398,1768381993035,500.0,9.657e-05,2]
[401825399,1768381993069,500.0,9.657e-05,2]
[401825400,1768381993100,500.0,9.657e-05,2]
[401825401,1768381993132,500.0,9.657e-05,2]
[401825402,1768381993169,500.0,9.657e-05,2]
[401825403,1768381993200,500.0,9.657e-05,2]
[401825404,1768381993230,500.0,9.657e-05,2]
[401825405,1768381993261,500.0,9.657e-05,2]
[401825406,1768381993291,500.0,9.657e-05,2]
[401825407,1768381993326,417.04088865,9.657e-05,2]
[401825408,1768381993349,82.95911135,9.657e-05,2]
[401825409,1768381993379,500.0,9.657e-05,2]
[401825410,1768381993581,500.0,9.657e-05,2]
[401825411,1768381993611,500.0,9.657e-05,2]
[401825412,1768381993641,500.0,9.657e-05,2]
[401825413,1768381993671,500.0,9.657e-05,2]
[401825414,1768381993705,525.25,9.657e-05,2]
[401825415,1768381993734,500.0,9.657e-05,2]
[401825416,1768381993773,500.0,9.657e-05,2]
[401825417,1768381993802,500.0,9.657e-05,2]
[401825418,1768381993832,500.0,9.657e-05,2]
[401825419,1768381993861,500.0,9.657e-05,2]
[401825420,1768381993895,500.0,9.657e-05,2]
[401825421,1768381993925,500.0,9.657e-05,2]
[401825422,1768381993963,500.0,9.657e-05,2]
[401825423,1768381993992,500.0,9.657e-05,2]
[401825424,1768381994022,500.0,9.657e-05,2]
[401825425,1768381994053,500.0,9.657e-05,2]
[401825426,1768381994103,500.0,9.657e-05,2]
[401825427,1768381994261,500.0,9.657e-05,2]
[401825428,1768381994292,391.80088865,9.657e-05,2]
[401825429,1768381994314,108.19911135,9.657e-05,2]
[401825430,1768381994343,500.0,9.657e-05,2]
[401825431,1768381994372,500.0,9.657e-05,2]
[401825432,1768381994402,500.0,9.657e-05,2]
[401825433,1768381994432,500.0,9.657e-05,2]
[401825434,1768381994465,500.0,9.657e-05,2]
[401825435,1768381994493,500.0,9.657e-05,2]
[401825436,1768381994523,500.0,9.657e-05,2]
[401825437,1768381994552,500.0,9.657e-05,2]
[401825438,1768381994581,500.0,9.657e-05,2]
[401825439,1768381994611,465.19800452,9.657e-05,2]
[401825440,1768381994642,500.0,9.657e-05,2]
[401825441,1768381994675,500.0,9.657e-05,2]
[401825442,1768381994705,500.0,9.657e-05,2]
[401825443,1768381994740,500.0,9.657e-05,2]
[401825444,1768381994770,500.0,9.657e-05,2]
[401825445,1768381994804,500.0,9.657e-05,2]
[401825446,1768381994835,500.0,9.657e-05,2]
[401825447,1768381994865,500.0,9.657e-05,2]
[401825448,1768381994896,500.0,9.657e-05,2]
[401825449,1768381994926,426.61288413,9.657e-05,2]
[401825450,1768381994949,73.38711587,9.657e-05,2]
[401825451,1768381994986,500.0,9.657e-05,2]
[401825452,1768381995016,500.0,9.657e-05,2]
[401825453,1768381995050,500.0,9.657e-05,2]
[401825454,1768381995092,500.0,9.657e-05,2]
[401825455,1768381995127,500.0,9.657e-05,2]
[401825456,1768381995160,500.0,9.657e-05,2]
[401825457,1768381995201,500.0,9.657e-05,2]
[401825458,1768381995244,500.0,9.657e-05,2]
[401825459,1768381995276,344.43661875,9.657e-05,2]
[401825460,1768381995308,463.52506696,9.657e-05,2]
[401825461,1768381995338,500.0,9.657e-05,2]
[401825462,1768381995415,282.26386852,9.657e-05,2]
[401825463,1768381996664,167.92,7.231e-05,2]
[401825466,1768382020834,201.241166,8.284e-05,2]
[401825477,1768382042823,300.0,9.658e-05,2]
[401825478,1768382102085,300.0,9.658e-05,2]
[401825479,1768382102981,300.0,9.658e-05,2]
[401825480,1768382105133,1200.0,9.658e-05,2]
[401825481,1768382138631,500.0,9.658e-05,2]
[401825482,1768382139225,500.0,9.658e-05,2]
[401825483,1768382139532,500.0,9.658e-05,2]
[401825484,1768382139854,584.83611855,9.658e-05,2]